bitfinex/quotes_ETHUSD_20250626
["timestamp","ask_amount","ask_price","bid_price","bid_amount"]
[1750937826337,0.55,2447.9,2447.7,4.08546544]
[1750937826928,0.55,2447.9,2447.6,4.08553399]
[1750937831433,0.55,2447.9,2447.7,4.08545511]
[1750937831627,0.55,2447.9,2447.6,4.0855499]
[1750937833742,0.204,2447.6,2447.5,4.08570462]
[1750937833906,7.75470208,2447.9,2447.5,4.08570462]
[1750937834109,8.60732229,2447.9,2447.5,4.08570462]
[1750937835206,8.60732229,2447.9,2447.6,4.08562283]
[1750937836644,8.60732229,2447.9,2447.5,4.08567495]
[1750937836645,0.204,2447.6,2447.5,4.08567495]
[1750937836811,7.75470208,2447.9,2447.6,4.08559353]
[1750937838259,0.204,2447.6,2447.5,4.0856972]
[1750937845149,0.55,2447.5,2447.3,0.39423641]
[1750937845450,0.204,2447.4,2447.3,4.48029932]
[1750937847147,0.204,2447.4,2447.3,0.39423641]
[1750937847650,0.754,2447.4,2447.3,0.39423641]
[1750937847953,2.37197021,2447.4,2447.3,0.39423641]
[1750937854452,1.54987021,2447.4,2447.3,0.39423641]
[1750937855653,0.55,2447.3,2447.0,4.08653301]
[1750937855860,0.204,2447.1,2447.0,4.08653301]
[1750937856555,0.204,2447.1,2447.0,4.08663669]
[1750937858159,0.204,2447.1,2446.9,10.82779581]
[1750937858461,7.20470208,2447.5,2446.9,10.82779581]
[1750937858462,0.204,2447.0,2446.9,10.82764007]
[1750937863160,0.204,2447.0,2446.8,4.91586502]
[1750937863365,0.204,2447.0,2446.9,6.739]
[1750937864269,0.204,2447.0,2446.9,10.82580371]
[1750937865778,0.204,2447.0,2446.9,6.739]
[1750937866863,0.204,2447.0,2446.8,4.91589358]
[1750937867162,0.204,2447.0,2446.9,6.737]
[1750937867362,0.204,2447.0,2446.9,10.82380371]
[1750937867564,0.204,2447.0,2446.9,6.737]
[1750937867746,0.204,2447.0,2446.8,4.91587774]
[1750937867945,0.204,2447.0,2446.9,6.737]
[1750937868645,0.204,2447.0,2446.9,10.82380371]
[1750937868843,0.204,2447.0,2446.9,6.737]
[1750937869059,0.204,2447.0,2446.9,10.82380371]
[1750937870771,0.204,2447.0,2446.9,6.737]
[1750937871246,0.204,2447.0,2446.7,1.774]
[1750937871448,0.55,2447.2,2446.8,6.736]
[1750937871661,0.85477021,2447.1,2446.8,6.736]
[1750937872072,8.55720208,2447.0,2446.4,5.06549319]
[1750937872276,8.55720208,2447.0,2446.3,5.8617923]
[1750937872277,7.75470208,2446.7,2446.3,5.8617923]
[1750937872443,7.75470208,2446.7,2446.4,6.735]
[1750937872773,0.204,2446.4,2446.3,8.509]
[1750937873175,0.204,2446.4,2446.3,8.51]
[1750937873948,0.204,2446.4,2446.3,5.86180607]
[1750937874176,0.204,2446.4,2446.3,12.59680607]
[1750937875676,0.774,2447.2,2446.7,4.857182]
[1750937875852,10.774,2447.2,2446.8,4.08695129]
[1750937876177,0.204,2446.8,2446.7,4.08704747]
[1750937880998,0.204,2446.8,2446.6,10.82221565]
[1750937881180,0.204,2446.8,2446.7,4.08713777]
[1750937882977,0.204,2446.8,2446.7,4.91433777]
[1750937890177,0.204,2446.8,2446.7,4.08713777]
[1750937897464,0.204,2446.8,2446.7,4.86093777]
[1750937897671,10.8151,2447.5,2447.0,4.08647103]
[1750937897976,0.204,2447.1,2447.0,4.08647103]
[1750937900094,0.204,2447.1,2446.9,4.08667075]
[1750937900699,0.204,2447.1,2447.0,4.08663669]
[1750937901510,0.204,2447.1,2446.9,4.08678036]
[1750937902082,0.55,2447.0,2446.6,0.204]
[1750937902286,0.204,2446.8,2446.7,4.08706321]
[1750937909606,0.204,2446.8,2446.6,10.81122798]
[1750937909886,0.204,2446.8,2446.7,4.08713777]
[1750937910086,0.204,2446.8,2446.6,10.81122798]
[1750937910418,0.204,2446.8,2446.6,6.724]
[1750937910620,0.204,2446.8,2446.6,10.81129159]
[1750937910920,7.75470208,2447.3,2446.4,4.08749114]
[1750937910921,0.204,2446.6,2446.4,4.08749114]
[1750937911088,1.3821,2446.7,2446.4,4.08749114]
[1750937911089,0.204,2446.5,2446.4,4.08749114]
[1750937912019,0.204,2446.5,2446.3,4.08779493]
[1750937912697,0.204,2446.5,2446.4,4.08763897]
[1750937913714,0.8199,2446.9,2446.6,4.08724551]
[1750937914215,0.8199,2446.9,2446.4,4.89973897]
[1750937914216,0.204,2446.6,2446.5,4.08737089]
[1750937925599,0.204,2446.6,2446.5,4.08747189]
[1750937925797,0.204,2446.6,2446.4,10.80753265]
[1750937925999,0.7504,2446.7,2446.4,10.80553265]
[1750937926226,0.204,2446.5,2446.4,10.80553265]
[1750937926829,0.204,2446.5,2446.0,0.9772]
[1750937926999,0.7612,2446.5,2446.2,6.718]
[1750937927327,0.204,2446.3,2446.1,10.80601254]
[1750937927532,0.204,2446.3,2446.2,4.08797318]
[1750937930035,8.72110208,2446.3,2445.8,0.204]
[1750937930234,7.20470208,2446.0,2445.5,4.08905347]
[1750937930402,1.3134,2445.9,2445.4,4.08929646]
[1750937931446,1.3134,2445.9,2445.4,4.08917895]
[1750937931730,1.3134,2445.9,2445.5,4.08906566]
[1750937931928,1.3134,2445.9,2445.6,4.08888815]
[1750937932334,0.7634,2445.9,2445.7,4.08879514]
[1750937932525,10.8247,2446.3,2445.7,0.40887951]
[1750937932720,10.8247,2446.3,2446.0,4.08829981]
[1750937932721,11.79697423,2446.3,2446.0,4.08829981]
[1750937932921,0.8247,2446.3,2446.1,4.08808603]
[1750937933232,0.8247,2446.3,2446.0,4.08821252]
[1750937933535,0.8247,2446.3,2445.7,0.7958]
[1750937933714,0.8247,2446.3,2446.0,4.08815362]
[1750937933913,0.8247,2446.3,2446.1,4.08811609]
[1750937934636,0.8247,2446.3,2446.2,4.08797318]
[1750937936136,0.55,2446.4,2446.3,4.08780607]
[1750937936336,0.55,2446.4,2446.2,4.08788245]
[1750937937425,0.55,2446.4,2446.3,4.08780607]
[1750937937744,1.757,2446.9,2446.1,4.08806698]
[1750937937745,0.8008,2447.0,2446.2,4.08797318]
[1750937937935,8.32882244,2447.0,2446.6,4.08719825]
[1750937938133,10.55,2446.9,2446.7,4.08706726]
[1750937938331,11.61182244,2447.0,2446.7,4.08706726]
[1750937938533,0.55,2446.9,2446.7,4.08706726]
[1750937942851,0.204,2446.7,2446.6,4.08730483]
[1750937943073,0.204,2447.1,2447.0,4.08658656]
[1750937949728,0.204,2447.1,2446.9,4.08678765]
[1750937949729,17.263,2447.6,2447.3,4.08613574]
[1750937949975,2.16886967,2447.5,2447.3,4.08613574]
[1750937950182,0.7662,2447.6,2447.5,4.08580183]
[1750937950323,0.7662,2447.6,2447.3,4.08604131]
[1750937950528,0.204,2447.4,2447.2,4.08615561]
[1750937950728,0.204,2447.4,2447.3,4.08613574]
[1750937952663,10.0,2447.9,2447.3,0.7944]
[1750937952832,10.0,2447.9,2447.3,4.08604118]
[1750937952833,7.40870208,2447.7,2447.3,4.08604118]
[1750937953031,0.7565,2447.6,2447.3,4.08604118]
[1750937953260,0.7565,2447.6,2447.4,4.08596876]
[1750937953759,0.7565,2447.6,2447.1,4.0863984]
[1750937953962,0.204,2447.4,2447.3,4.08613574]
[1750937960565,0.55,2447.9,2447.6,4.08549887]
[1750937960865,0.204,2447.7,2447.6,4.08549887]
[1750937962332,0.204,2447.7,2447.6,4.0856349]
[1750937962968,0.7633,2447.6,2447.3,4.08604719]
[1750937963264,0.7633,2447.6,2447.4,4.08592137]
[1750937963469,0.204,2447.4,2447.3,4.08606275]
[1750937966444,0.204,2447.4,2447.2,4.08620656]
[1750937966772,0.204,2447.4,2447.3,4.08613574]
[1750937969479,0.204,2447.4,2447.2,4.08620275]
[1750937974055,0.204,2447.4,2447.3,4.08613574]
[1750937974987,6.706,2447.9,2447.6,4.08548865]
[1750937975292,0.204,2447.6,2447.5,4.08580183]
[1750937978180,0.204,2447.6,2447.4,4.08587212]
[1750937978996,0.204,2447.6,2447.3,4.08602249]
[1750937979791,0.8272,2447.7,2447.4,4.08596532]
[1750937979975,2.39862596,2447.7,2447.5,4.0857349]
[1750937980871,0.204,2447.5,2447.4,4.08586246]
[1750937981073,2.39862596,2447.7,2447.4,4.08586246]
[1750937983678,0.204,2447.4,2447.3,4.08605207]
[1750937990199,0.97635747,2447.8,2447.7,4.08546799]
[1750937990375,0.97635747,2447.9,2447.7,4.08546799]
[1750937990570,0.97635747,2447.8,2447.7,4.08546799]
[1750937990776,0.204,2447.7,2447.6,4.08554359]
[1750937991871,0.204,2447.9,2447.8,4.08530108]
[1750937993004,0.204,2447.9,2447.7,4.08536696]
[1750937993790,0.204,2447.9,2447.8,4.08530108]
[1750937994311,0.204,2447.9,2447.7,4.08537465]
[1750937994808,0.204,2447.9,2447.8,4.08530108]
[1750937995307,0.204,2447.9,2447.7,4.08540183]
[1750937996110,0.204,2447.9,2447.6,4.08554361]
[1750937996283,0.204,2447.9,2447.7,4.08546448]
[1750937997209,0.204,2447.9,2447.6,4.0855925]
[1750937998805,0.204,2447.9,2447.5,4.08580183]
[1750937998806,0.82053021,2447.9,2447.5,4.08580183]
[1750937999011,0.204,2447.7,2447.5,4.08580183]
[1750938000179,0.204,2447.7,2447.5,4.08574565]
[1750938000381,0.98,2447.7,2447.4,4.08587245]
[1750938000612,0.776,2447.7,2447.4,4.08587245]
[1750938000799,0.204,2447.4,2447.3,4.08605478]
[1750938001599,0.7836,2447.3,2446.8,4.08697073]
[1750938001810,0.204,2447.0,2446.9,4.08670868]
[1750938002812,0.204,2447.1,2446.9,4.08667688]
[1750938004326,0.204,2447.1,2446.8,4.08693926]
[1750938004620,0.204,2447.1,2446.8,4.08696034]
[1750938004621,0.55,2447.1,2446.8,4.08696034]
[1750938005518,0.55,2447.1,2446.7,4.08704244]
[1750938005731,0.55,2447.1,2446.5,10.7833]
[1750938005732,0.204,2446.8,2446.5,0.7833]
[1750938005891,0.204,2446.7,2446.6,4.08720417]
[1750938006522,0.204,2446.7,2446.4,4.08756874]
[1750938006709,0.204,2446.5,2446.4,4.08756874]
[1750938008831,0.204,2446.5,2446.2,1.748]
[1750938008992,0.204,2446.5,2446.3,4.08778093]
[1750938009886,0.204,2446.5,2446.2,5.83584337]
[1750938010086,0.204,2446.3,2446.2,5.83584337]
[1750938010328,0.204,2446.3,2446.2,5.83597318]
[1750938012720,0.204,2446.3,2446.1,4.0880767]
[1750938013198,0.55,2446.4,2445.9,4.08837881]
[1750938013404,0.204,2446.1,2446.0,4.08827059]
[1750938017101,0.7712,2446.7,2446.1,4.08804604]
[1750938017323,0.204,2446.4,2446.0,7.6609]
[1750938017513,0.204,2446.4,2446.3,4.08765756]
[1750938022030,0.204,2446.4,2446.3,4.91485756]
[1750938025646,0.204,2446.4,2446.3,4.08765756]
[1750938047744,0.204,2446.4,2446.2,4.08793384]
[1750938048148,7.20470208,2446.5,2445.8,2.5567]
[1750938048331,0.204,2446.2,2446.0,10.78117215]
[1750938048720,0.204,2446.2,2446.1,4.0881403]
[1750938049219,0.7885,2446.6,2446.4,4.08750218]
[1750938049425,1.74010509,2446.6,2446.4,4.08750218]
[1750938049637,0.7885,2446.6,2446.4,4.08750218]
[1750938050623,0.7885,2446.6,2446.3,4.08770368]
[1750938050823,0.204,2446.4,2446.3,4.08770368]
[1750938056458,0.204,2446.4,2446.2,4.08790279]
[1750938056757,0.204,2446.4,2446.2,4.08796917]
[1750938058062,0.204,2446.4,2446.3,4.08780607]
[1750938061166,0.204,2446.4,2446.2,4.0879398]
[1750938061535,0.204,2446.4,2446.3,4.08780607]
[1750938073174,0.9728488,2446.7,2446.3,4.08780607]
[1750938073175,0.9728488,2446.7,2446.6,4.08730483]
[1750938073374,0.7937,2447.0,2446.7,4.08707683]
[1750938073375,0.9728488,2446.9,2446.7,4.08707683]
[1750938073672,0.9728488,2446.8,2446.7,4.08707683]
[1750938073874,0.7937,2447.0,2446.7,4.08707683]
[1750938073875,0.9728488,2446.9,2446.7,4.08707683]
[1750938074241,1.7665488,2447.0,2446.7,4.08707683]
[1750938074564,1.95212509,2446.9,2446.7,4.08707683]
[1750938075178,1.95212509,2446.9,2446.3,6.62490607]
[1750938075179,1.7665488,2447.0,2446.8,4.08697073]
[1750938075357,0.7937,2447.0,2446.9,4.08680371]
[1750938075674,0.204,2446.9,2446.8,4.08695189]
[1750938075987,0.7937,2447.0,2446.8,4.08695189]
[1750938076377,0.7937,2447.0,2446.7,4.08706671]
[1750938076580,0.204,2446.8,2446.7,4.08706671]
[1750938079063,7.40870208,2446.8,2446.5,4.08733588]
[1750938079380,1.0189,2446.7,2446.5,4.08733588]
[1750938079674,1.0189,2446.7,2446.2,0.204]
[1750938079977,1.0189,2446.7,2446.6,4.08730483]
[1750938080178,0.8309,2446.5,2445.8,4.91609704]
[1750938080381,8.03560208,2446.5,2446.2,4.0878706]
[1750938080882,8.03560208,2446.5,2446.1,4.08803762]
[1750938082969,8.03560208,2446.5,2446.2,4.087973]
[1750938083360,8.03560208,2446.5,2446.1,4.08806345]
[1750938083560,8.99162395,2446.5,2446.1,4.08806345]
[1750938084683,8.99162395,2446.5,2446.2,4.08797139]
[1750938085176,0.7761,2446.4,2446.1,4.08807169]
[1750938085546,0.7761,2446.4,2446.2,4.08794563]
[1750938087656,0.7761,2446.4,2446.0,4.08820635]
[1750938087862,0.7761,2446.4,2446.1,4.08804359]
[1750938088963,0.7761,2446.4,2446.2,4.08795973]
[1750938091005,0.204,2446.2,2446.1,4.08803835]
[1750938091173,0.204,2446.2,2446.1,4.0881403]
[1750938091566,0.204,2446.2,2446.0,4.08824371]
[1750938092063,0.204,2446.2,2445.3,0.8191]
[1750938092064,8.03510208,2446.1,2445.3,0.8191]
[1750938092286,8.03510208,2446.1,2445.9,4.08840623]
[1750938092598,8.03510208,2446.1,2445.8,4.0885666]
[1750938094282,0.8304,2446.1,2445.9,4.08845201]
[1750938094478,0.55,2446.2,2445.9,4.08845201]
[1750938098703,0.55,2446.2,2445.8,4.08855015]
[1750938099279,0.55,2446.2,2445.9,4.08846099]
[1750938100607,0.55,2446.2,2445.8,4.08855857]
[1750938101500,0.55,2446.2,2445.5,0.8186]
[1750938101700,0.55,2446.0,2445.7,4.08873221]
[1750938102680,0.204,2445.7,2445.5,0.8186]
[1750938102897,10.0,2446.2,2445.8,4.08857795]
[1750938103102,0.204,2445.9,2445.8,4.08857795]
[1750938121589,0.7952,2445.7,2445.0,0.7951]
[1750938121795,0.204,2445.4,2445.2,4.08953191]
[1750938123121,0.204,2445.4,2445.3,4.08947777]
[1750938123416,0.204,2445.6,2445.5,4.0891298]
[1750938124911,0.204,2445.6,2445.5,4.8654298]
[1750938125221,0.204,2445.8,2445.7,4.08874085]
[1750938126221,0.204,2445.8,2445.6,4.08890327]
[1750938126422,0.204,2445.8,2445.3,6.83978726]
[1750938126625,7.96720208,2445.7,2445.2,4.08957218]
[1750938126926,0.9665,2445.4,2445.1,5.82474279]
[1750938130304,0.7625,2445.4,2445.1,1.735]
[1750938130629,0.204,2445.3,2445.1,5.82480447]
[1750938131139,0.204,2445.3,2445.2,4.08964501]
[1750938133108,0.204,2445.3,2445.1,1.735]
[1750938133314,0.204,2445.3,2445.1,5.82478725]
[1750938134620,0.204,2445.3,2445.2,4.08964501]
[1750938135137,0.204,2445.3,2445.1,5.82475679]
[1750938135438,0.204,2445.3,2445.2,4.08964501]
[1750938135634,0.204,2445.3,2445.1,5.82473867]
[1750938136334,0.204,2445.3,2445.1,1.735]
[1750938136838,0.204,2445.3,2445.1,5.82480788]
[1750938137644,0.204,2445.3,2445.2,4.08964501]
[1750938137842,0.204,2445.3,2445.1,5.82471397]
[1750938138440,0.204,2445.3,2445.2,4.08964501]
[1750938147452,0.204,2445.3,2445.1,4.08974009]
[1750938150354,0.204,2445.3,2445.2,4.08964501]
[1750938151445,0.204,2445.3,2445.1,4.08971989]
[1750938151762,0.204,2445.3,2445.2,4.08964501]
[1750938153852,0.204,2445.3,2445.1,4.08971513]
[1750938154825,0.204,2445.3,2445.0,4.08988036]
[1750938155022,0.204,2445.3,2445.1,4.08976775]
[1750938155661,0.204,2445.3,2445.0,4.08991467]
[1750938155882,0.204,2445.3,2445.1,4.08980903]
[1750938156467,1.0258,2445.3,2445.0,4.08987962]
[1750938156756,1.0258,2445.3,2445.1,4.08980462]
[1750938157431,0.204,2445.3,2445.2,4.08964501]
[1750938157630,0.204,2445.3,2445.1,4.08969689]
[1750938158650,0.204,2445.3,2445.0,4.08989395]
[1750938158858,0.204,2445.3,2445.0,4.08994907]
[1750938159748,0.204,2445.0,2444.6,0.8034]
[1750938160058,0.204,2445.0,2444.8,4.09019852]
[1750938161156,0.204,2445.0,2444.9,4.09014683]
[1750938161530,0.204,2445.0,2444.7,4.09041633]
[1750938161766,0.7964,2445.2,2444.6,4.09056488]
[1750938161767,0.55,2445.1,2444.6,4.09056488]
[1750938162059,0.7659,2444.8,2444.5,4.09073193]
[1750938162259,0.204,2444.6,2444.5,4.09073193]
[1750938165852,1.023,2444.6,2443.8,0.7878]
[1750938166034,0.204,2444.5,2444.3,4.09115006]
[1750938167247,0.204,2444.5,2443.9,1.938]
[1750938167445,0.204,2444.4,2444.3,4.09114027]
[1750938169168,0.204,2444.4,2444.2,4.09122529]
[1750938169543,0.204,2444.4,2444.3,4.09115084]
[1750938171153,0.204,2444.4,2444.2,4.0912417]
[1750938171753,0.204,2444.4,2444.1,4.0914017]
[1750938172539,0.204,2444.4,2444.2,4.0912991]
[1750938173772,0.204,2444.4,2444.2,4.09130416]
[1750938174664,0.204,2444.4,2444.3,4.09115084]
[1750938177239,0.204,2444.4,2444.2,4.09122699]
[1750938177644,0.204,2444.4,2444.3,4.09115084]
[1750938178542,0.204,2444.4,2444.2,4.09115964]
[1750938178739,0.204,2444.4,2444.3,4.09115084]
[1750938182489,0.204,2444.4,2444.1,4.09134036]
[1750938182815,0.204,2444.4,2444.0,1.731]
[1750938182955,0.204,2444.1,2443.9,4.09175667]
[1750938183156,0.204,2444.1,2443.9,5.82275667]
[1750938183352,0.204,2444.1,2443.8,4.09198621]
[1750938183353,7.40870208,2444.1,2443.8,4.09198621]
[1750938183666,7.40870208,2444.1,2443.7,0.204]
[1750938183868,7.40870208,2444.1,2443.7,4.29603249]
[1750938184062,7.40870208,2444.1,2443.7,0.204]
[1750938184271,8.22683229,2444.1,2443.7,4.29615356]
[1750938184554,8.22683229,2444.1,2443.7,0.204]
[1750938185477,8.22683229,2444.1,2443.7,4.2961108]
[1750938185661,0.204,2444.1,2443.8,0.7859]
[1750938185871,0.204,2444.1,2444.0,4.09165302]
[1750938192903,0.204,2444.1,2443.9,4.09170969]
[1750938194689,0.204,2444.1,2444.0,4.09165302]
[1750938195259,0.204,2444.1,2443.9,4.09174855]
[1750938195757,0.204,2444.1,2443.8,4.09192582]
[1750938195992,0.204,2444.1,2443.8,5.82292582]
[1750938196699,0.204,2444.1,2443.8,1.731]
[1750938197302,0.204,2444.1,2443.7,4.09214071]
[1750938197303,0.7579,2444.0,2443.7,4.09214071]
[1750938197471,0.204,2443.7,2443.6,5.82319261]
[1750938197860,0.204,2443.7,2443.6,1.731]
[1750938198406,0.7579,2444.0,2443.7,4.09207751]
[1750938198560,0.204,2443.9,2443.7,4.09207751]
[1750938199298,0.204,2443.9,2443.7,4.09215533]
[1750938199483,0.204,2443.9,2443.8,4.09198788]
[1750938200204,0.204,2444.4,2444.3,4.09111371]
[1750938206319,0.97310213,2444.8,2444.6,4.88851194]
[1750938206619,0.204,2444.9,2444.8,4.09031413]
[1750938207279,0.97310213,2445.1,2445.0,4.08997955]
[1750938207486,0.97310213,2445.3,2445.1,4.08977422]
[1750938207687,0.204,2445.1,2444.7,8.608]
[1750938207918,0.204,2445.1,2444.6,0.798]
[1750938207919,17.20470208,2444.8,2444.5,1.731]
[1750938208218,10.204,2444.8,2444.6,4.09063157]
[1750938208422,10.204,2444.8,2444.7,4.09048144]
[1750938208735,0.204,2444.8,2444.7,4.09048144]
[1750938210034,6.08496842,2445.8,2444.7,4.09040533]
[1750938210035,7.98080208,2445.5,2444.7,4.09040533]
[1750938210208,0.204,2445.2,2445.1,4.08981227]
[1750938217423,0.204,2445.2,2445.0,5.82096681]
[1750938217424,0.204,2445.2,2445.0,1.731]
[1750938217582,0.204,2445.2,2444.9,4.09009143]
[1750938217583,0.204,2445.2,2444.8,5.1058323]
[1750938217789,7.20470208,2445.1,2444.8,0.204]
[1750938217990,0.204,2445.0,2444.7,4.09047894]
[1750938218190,0.204,2445.0,2444.6,6.02257657]
[1750938218512,0.204,2444.9,2444.6,5.81857657]
[1750938218713,0.9646,2444.9,2444.6,1.728]
[1750938219391,0.7606,2444.9,2444.5,12.48779433]
[1750938219593,0.204,2444.7,2444.5,12.48779433]
[1750938219892,0.204,2444.7,2444.5,4.09079433]
[1750938220827,0.204,2444.7,2444.4,1.728]
[1750938221058,0.204,2444.6,2444.4,1.728]
[1750938221324,0.204,2444.6,2444.3,4.09115084]
[1750938222492,0.204,2444.6,2444.2,22.30319383]
[1750938222703,0.9777,2444.6,2444.2,22.30319383]
[1750938222901,0.9777,2444.6,2444.2,22.30328865]
[1750938223224,0.204,2444.4,2444.2,18.212]
[1750938223800,0.204,2444.4,2444.2,11.543]
[1750938224126,0.204,2444.4,2444.2,15.63430974]
[1750938224323,0.204,2444.4,2444.2,11.543]
[1750938224889,0.204,2444.4,2444.2,15.6343133]
[1750938225194,0.204,2444.4,2444.2,11.543]
[1750938225698,0.204,2444.4,2444.2,15.63431683]
[1750938225894,0.204,2444.4,2444.2,5.81931683]
[1750938226822,0.7858,2444.9,2444.4,4.09089891]
[1750938227127,0.7858,2444.9,2444.6,4.09057537]
[1750938227128,0.204,2444.7,2444.6,4.09057537]
[1750938228401,0.7875,2445.2,2444.8,4.09025371]
[1750938228717,0.7875,2445.2,2444.4,6.669]
[1750938228718,0.204,2445.0,2444.9,4.09014683]
[1750938228898,0.204,2445.0,2444.8,4.09023751]
[1750938229425,0.204,2445.0,2444.9,4.09014683]
[1750938230434,0.204,2445.0,2444.8,4.09020629]
[1750938230635,0.204,2445.0,2444.9,4.09014683]
[1750938230803,0.204,2445.0,2444.7,4.09040501]
[1750938231138,0.204,2445.0,2444.8,4.09017667]
[1750938232528,0.204,2445.0,2444.9,4.09014683]
[1750938235640,0.204,2445.0,2444.8,4.09017426]
[1750938236151,0.204,2445.0,2444.8,4.090308]
[1750938236303,0.204,2445.0,2444.7,12.48642778]
[1750938236719,0.8005,2444.9,2444.7,8.396]
[1750938236939,8.20920208,2444.9,2444.7,1.728]
[1750938237240,0.82092021,2444.8,2444.7,1.728]
[1750938237464,0.82092021,2444.8,2444.4,4.09086749]
[1750938237624,8.00520208,2444.9,2444.4,4.09086749]
[1750938237819,0.204,2444.7,2444.5,4.09081165]
[1750938239456,0.204,2444.7,2444.3,5.81906788]
[1750938239457,0.204,2444.7,2444.4,4.0908834]
[1750938241055,0.204,2444.7,2444.3,4.09109653]
[1750938241232,0.204,2444.5,2444.3,4.09109653]
[1750938242761,0.204,2444.5,2444.4,4.09098347]
[1750938243341,0.9825,2444.5,2444.3,4.09105437]
[1750938244243,0.9825,2444.5,2444.2,5.81923258]
[1750938244786,0.9825,2444.5,2444.2,1.728]
[1750938244934,0.9825,2444.5,2444.3,4.09107392]
[1750938245136,0.9825,2444.5,2444.2,5.81923382]
[1750938245436,0.9825,2444.5,2444.3,4.09112869]
[1750938245851,0.9825,2444.5,2444.4,4.09098347]
[1750938246045,0.7744,2444.9,2444.4,4.09091074]
[1750938246249,0.204,2444.7,2444.6,4.09064117]
[1750938246757,0.204,2444.7,2444.5,4.09071335]
[1750938246953,0.204,2444.7,2444.6,4.09064877]
[1750938247658,0.204,2444.7,2444.5,4.09072014]
[1750938248740,0.204,2444.7,2444.4,4.0909251]
[1750938248938,0.204,2444.7,2444.4,4.0409251]
[1750938249142,0.204,2444.7,2444.5,4.09079174]
[1750938249364,0.204,2444.7,2444.4,4.09093169]
[1750938250774,11.74798188,2444.9,2444.3,4.09107947]
[1750938250969,0.204,2444.4,2444.3,4.09107947]
[1750938251875,0.9838,2444.4,2444.2,5.81821868]
[1750938252054,0.9838,2444.4,2444.3,4.09115084]
[1750938253178,0.204,2444.4,2444.2,5.81819186]
[1750938253875,0.204,2444.4,2444.2,1.727]
[1750938254052,0.204,2444.4,2444.1,4.09140959]
[1750938254053,0.7885,2444.3,2444.1,4.09140959]
[1750938254980,0.7885,2444.3,2444.0,4.29564763]
[1750938255275,0.204,2444.2,2444.0,4.09164763]
[1750938256287,0.204,2444.2,2443.9,4.09172809]
[1750938256649,0.204,2444.2,2444.0,4.09164593]
[1750938257676,0.97382364,2444.8,2444.3,4.09098801]
[1750938257677,0.768,2444.8,2444.3,4.09098801]
[1750938257877,0.768,2444.8,2444.1,0.8002]
[1750938257878,0.204,2444.5,2444.4,4.09095794]
[1750938258552,0.204,2444.6,2444.5,4.09080817]
[1750938258748,0.204,2444.6,2444.5,4.92180817]
[1750938258946,0.7815,2445.1,2444.5,9.225]
[1750938258947,0.204,2444.9,2444.5,9.225]
[1750938259184,0.7815,2445.1,2444.8,4.09018838]
[1750938259185,0.204,2445.1,2444.8,4.09018838]
[1750938259348,0.204,2445.1,2444.9,4.0900489]
[1750938259556,0.204,2445.1,2445.0,4.08997955]
[1750938259762,0.7815,2445.3,2445.1,4.08976301]
[1750938259961,0.204,2445.2,2445.1,4.08976301]
[1750938260179,0.204,2445.2,2445.0,4.08988909]
[1750938260351,0.204,2445.2,2445.1,4.08981227]
[1750938260756,0.204,2445.2,2445.0,4.08988205]
[1750938263062,0.204,2445.2,2444.8,4.29424716]
[1750938263276,8.39285234,2445.2,2444.9,4.09014659]
[1750938263474,0.204,2445.0,2444.8,4.0902449]
[1750938264489,0.204,2445.0,2444.9,4.09014683]
[1750938265359,0.204,2445.0,2444.8,4.09021337]
[1750938266386,0.204,2445.0,2444.9,4.09014683]
[1750938267593,0.204,2445.0,2444.8,4.09021295]
[1750938268977,0.204,2445.0,2444.9,4.09014683]
[1750938269192,0.204,2445.0,2444.8,4.09024331]
[1750938269864,0.8172,2444.9,2444.6,4.0905548]
[1750938270089,0.204,2444.7,2444.6,4.0905548]
[1750938270892,0.204,2444.7,2444.5,5.81771437]
[1750938271092,0.204,2444.7,2444.6,4.09064877]
[1750938271907,3.22147878,2446.4,2445.7,4.08864176]
[1750938272195,0.97279184,2446.3,2445.3,0.7962]
[1750938272398,0.8201,2446.0,2445.3,0.7962]
[1750938272561,0.97279184,2445.9,2445.5,4.08899151]
[1750938272761,0.8201,2446.0,2445.3,0.7962]
[1750938272762,0.97279184,2445.8,2445.3,0.7962]
[1750938272989,0.97279184,2445.7,2445.1,0.7831]
[1750938273194,0.8093,2445.5,2444.9,4.87315806]
[1750938273359,8.01400208,2445.5,2444.9,4.87323125]
[1750938274303,0.8093,2445.5,2444.9,4.87323125]
[1750938274504,0.8093,2445.5,2444.7,6.743]
[1750938274669,1.16270494,2445.4,2444.8,4.09029003]
[1750938275676,1.16270494,2445.4,2444.6,4.09057221]
[1750938276399,0.8016,2445.3,2444.5,4.87725124]
[1750938276569,1.772,2445.2,2444.3,11.65509511]
[1750938276897,2.82003049,2445.2,2444.5,4.09069551]
[1750938277698,2.82003049,2445.2,2444.4,4.09096408]
[1750938277880,0.8194,2445.0,2444.3,4.91202928]
[1750938279370,0.8194,2445.0,2444.3,4.09102928]
[1750938279570,1.08194,2444.9,2444.3,4.09102928]
[1750938280005,1.08194,2444.9,2444.2,4.09124126]
[1750938280300,1.08194,2444.9,2444.3,4.09112812]
[1750938280469,1.08194,2444.9,2444.4,4.09090536]
[1750938281271,10.0,2444.8,2444.4,4.09090536]
[1750938281497,11.772,2444.9,2444.4,4.09091424]
[1750938281697,0.204,2444.5,2444.1,4.29548561]
[1750938281902,0.204,2444.5,2444.3,4.09114588]
[1750938282502,0.204,2444.5,2444.2,4.0912335]
[1750938283404,0.9631,2444.5,2444.1,4.2953864]
[1750938283610,0.204,2444.3,2444.0,0.7583]
[1750938283778,0.204,2444.3,2444.2,4.09130154]